lending/lending_fUSD_20251218
["ID","MTS","AMOUNT","RATE_DAILY","PERIOD"]
[399002637,1766053831759,-7068.59005557,0.00016,4]
[399002638,1766053831769,-2640.84449685,0.000162,5]
[399002667,1766053837784,-322.5000049,0.000162,5]
[399002692,1766053839739,-258.28145893,0.000162,5]
[399002693,1766053843102,-11870.02691514,0.000162,5]
[399002694,1766053843113,-71735.4104483,0.00017,2]
[399002695,1766053843123,-168.0,0.0001995,2]
[399002696,1766053843133,-4729.51858954,0.0001995,15]
[399002697,1766053843143,-200.0,0.00020183,2]
[399002698,1766053843153,-270.07,0.00020187,2]
[399002699,1766053843163,-168.0,0.00020446,2]
[399002700,1766053843173,-168.0,0.00020605,2]
[399002701,1766053843183,-168.0,0.00020672,2]
[399002702,1766053843193,-168.0,0.00020752,2]
[399002703,1766053843204,-213.0,0.00020767,2]
[399002704,1766053843214,-168.0,0.0002078,2]
[399002705,1766053843224,-2402.35312524,0.00021017,2]
[399002706,1766053843234,-2819.10905746,0.00021017,2]
[399002707,1766053843244,-220.02233593,0.00021017,3]
[399002708,1766053843254,-168.0,0.0002102,2]
[399002709,1766053843264,-168.0,0.00021051,2]
[399002712,1766053843274,-168.0,0.00021052,2]
[399002715,1766053843284,-168.0,0.00021071,2]
[399002719,1766053843294,-168.0,0.00021077,2]
[399002722,1766053843304,-168.0,0.00021101,2]
[399002725,1766053843314,-168.0,0.00021112,2]
[399002727,1766053843323,-329.286,0.00021112,2]
[399002729,1766053843333,-169.42665939,0.00021116,2]
[399002730,1766053843342,-500.0,0.00021116,2]
[399002732,1766053843352,-500.0,0.00021116,2]
[399002734,1766053843361,-156.48249269,0.00021116,2]
[399002736,1766053843371,-1000.0,0.00021117,2]
[399002738,1766053843380,-41860.92431067,0.00021117,2]
[399002741,1766053843391,-5366.39459187,0.00021117,2]
[399002757,1766053845898,-266.4603361,0.00021117,2]
[399002758,1766053845910,-285.22545761,0.00021117,2]
[399002820,1766055031730,-525.74328535,0.00018935,2]
[399002822,1766055031742,-1337.70986208,0.00018935,2]
[399002823,1766055031753,-1257.02204758,0.00018935,2]
[399002824,1766055031782,-659.16409751,0.00018935,2]
[399002825,1766055031838,-500.0,0.00018935,2]
[399002826,1766055031850,-298.1025574,0.00018935,2]
[399002827,1766055031863,-306.0,0.00018935,2]
[399002828,1766055031941,-5610.104616,0.00018935,2]
[399002829,1766055031996,-394.84633495,0.00018935,2]
[399002847,1766055037836,-637.49999488,0.00018935,2]
[399002848,1766055037849,-16145.68334615,0.00018935,2]
[399002849,1766055037860,-1943.7413475,0.00018935,2]
[399002850,1766055037870,-4095.1621665,0.00018935,2]
[399002851,1766055037879,-2124.8337421,0.00018935,2]
[399002852,1766055037889,-263.428,0.00020596,2]
[399002853,1766055037899,-1607.0,0.00020711,2]
[399002854,1766055037908,-3452.0,0.00020711,2]
[399002855,1766055037918,-1335.73,0.00020711,2]
[399002856,1766055037928,-613.199,0.00020711,2]
[399002857,1766055037939,-2623.0124,0.00020917,2]
[399002858,1766055037950,-766.4352635,0.00020989,2]
[399002859,1766055037959,-178.30159736,0.00021016,2]
[399002860,1766055037969,-500.0,0.00021016,2]
[399002861,1766055037978,-500.0,0.00021016,2]
[399002862,1766055037988,-500.0,0.00021016,2]
[399002863,1766055037997,-500.0,0.00021016,2]
[399002864,1766055038006,-500.0,0.00021016,2]
[399002865,1766055038016,-500.0,0.00021016,2]
[399002866,1766055038026,-2537.19815166,0.00021016,2]
[399002867,1766055038039,-270.41631183,0.00021016,2]
[399002868,1766055038048,-500.0,0.00021016,2]
[399002869,1766055038057,-533.10990625,0.00021016,2]
[399002870,1766055038067,-500.0,0.00021016,2]
[399002871,1766055038076,-500.0,0.00021016,2]
[399002872,1766055038085,-500.0,0.00021016,2]
[399002873,1766055038093,-500.0,0.00021016,2]
[399002874,1766055038101,-515.45477873,0.00021016,2]
[399002875,1766055038110,-500.0,0.00021016,2]
[399002876,1766055038118,-500.0,0.00021016,2]
[399002877,1766055038127,-500.0,0.00021016,2]
[399002878,1766055038136,-500.0,0.00021016,2]
[399002879,1766055038146,-500.0,0.00021016,2]
[399002881,1766055038158,-500.0,0.00021016,2]
[399002883,1766055038167,-2162.11781277,0.00021016,2]
[399002885,1766055038177,-1000.0,0.00021017,2]
[399002887,1766055038185,-49411.83459887,0.00021017,2]
[399002889,1766055038199,-1301.11997449,0.00021017,2]
[399003045,1766055039772,-1466.62214,0.00021017,2]
[399003058,1766055039880,-386024.10455119,0.00021017,2]
[399003060,1766055039891,-371.30289987,0.00021017,2]
[399003077,1766055040037,-8903.56890921,0.00021017,2]
[399003109,1766055042942,-6876.58690395,0.00021017,2]
[399003110,1766055042996,-433644.86002242,0.00021017,2]
[399003111,1766055043005,-500.0,0.00021116,2]
[399003112,1766055043015,-791.40789588,0.00021116,2]
[399003113,1766055043024,-500.0,0.00021116,2]
[399003114,1766055043033,-500.0,0.00021116,2]
[399003115,1766055043043,-500.0,0.00021116,2]
[399003116,1766055043053,-500.0,0.00021116,2]
[399003117,1766055043063,-500.0,0.00021116,2]
[399003118,1766055043074,-500.0,0.00021116,2]
[399003119,1766055043083,-500.0,0.00021116,2]
[399003120,1766055043093,-507.00993058,0.00021116,2]
[399003121,1766055043103,-167.27962419,0.00021117,2]
[399003123,1766055043112,-168.0,0.00021147,2]
[399003125,1766055043121,-168.0,0.00021186,2]
[399003127,1766055043130,-168.0,0.00021208,2]
[399003128,1766055043141,-500.0,0.00021216,2]
[399003129,1766055043154,-529.3,0.00021219,2]
[399003131,1766055043163,-533.55,0.00021219,2]
[399003133,1766055043172,-168.0,0.00021244,2]
[399003135,1766055043181,-500.0,0.00021316,2]
[399003137,1766055043191,-363.70838025,0.00021316,2]
[399003139,1766055043199,-529.45,0.00021317,2]
[399003141,1766055043208,-515.33,0.00021317,2]
[399003144,1766055043218,-168.0,0.0002136,2]
[399003146,1766055043227,-485.0,0.00021556,2]
[399003149,1766055043236,-485.0,0.00021664,2]
[399003152,1766055043245,-913.75419,0.00021718,2]
[399003156,1766055043254,-300.0,0.00021773,2]
[399003159,1766055043263,-200.0,0.000219,5]
[399003162,1766055043273,-6174.4301551,0.00022324,2]
[399003164,1766055043282,-203.8861187,0.00022339,2]
[399003166,1766055043292,-961.79,0.00022411,2]
[399003168,1766055043301,-168.0,0.00022515,2]
[399003170,1766055043309,-1255.9,0.00022548,2]
[399003172,1766055043318,-168.0,0.00022731,2]
[399003173,1766055043327,-1377.7015893,0.0002308,2]
[399003174,1766055043337,-485.0,0.00023092,2]
[399003175,1766055043345,-288.9,0.00023142,2]
[399003176,1766055043355,-462.52746039,0.00023235,2]
[399003177,1766055043363,-500.0,0.00023235,2]
[399003178,1766055043373,-500.0,0.00023235,2]
[399003179,1766055043381,-500.0,0.00023235,2]
[399003180,1766055043391,-500.0,0.00023235,2]
[399003181,1766055043400,-2537.19815165,0.00023236,2]
[399003182,1766055043409,-2162.1178127,0.00023236,2]
[399003183,1766055043418,-485.0,0.00023398,2]
[399003184,1766055043428,-485.0,0.00023578,2]
[399003185,1766055043437,-152.96510158,0.00023681,2]
[399003186,1766055043447,-485.0,0.00023693,2]
[399003187,1766055043456,-6294.0,0.00023743,2]
[399003188,1766055043466,-17506.91177609,0.00023743,2]
[399003189,1766055043478,-21636.60216024,0.00023743,2]
[399003191,1766055045927,-252.00984,0.00023743,2]
[399003192,1766055045999,-400.0,0.00023743,2]
[399003193,1766055046188,-18120.93962766,0.00023743,2]
[399003194,1766055046241,-550.0902384,0.00023743,2]
[399003205,1766056231932,-2690.226691,0.00020269,2]
[399003206,1766056231942,-280.2264,0.00020371,2]
[399003207,1766056231951,-210.743,0.00020471,2]
[399003208,1766056231961,-1569.803909,0.00020789,2]
[399003209,1766056231983,-2202.40451479,0.00020789,2]
[399003210,1766056232089,-5063.77142747,0.00020789,2]
[399003211,1766056232101,-9543.61836146,0.00020789,2]
[399003212,1766056232111,-1627.43008728,0.00020789,2]
[399003213,1766056232121,-3056.6722,0.00020789,2]
[399003214,1766056232130,-2500.0,0.00020789,2]
[399003215,1766056232140,-162.6782,0.00020789,2]
[399003217,1766056232149,-3856.36298984,0.00020789,2]
[399003238,1766056238118,-302.69033,0.00020789,2]
[399003239,1766056238225,-578.52922586,0.00020789,2]
[399003343,1766056240027,-5351.68821485,0.00020789,2]
[399003344,1766056240039,-1269.9727187,0.00020789,2]
[399003345,1766056240136,-22114.63832075,0.00020789,2]
[399003346,1766056240146,-5544.8593786,0.00020789,2]
[399003347,1766056240295,-1430.70000002,0.00020789,2]
[399003356,1766056243014,-531.774,0.00020789,2]
[399003357,1766056243121,-2282.59204953,0.00020789,2]
[399003358,1766056243133,-899.99,0.00020789,2]
[399003359,1766056243176,-877310.08457185,0.00020789,2]
[399003360,1766056243187,-239.18950861,0.00020817,2]
[399003361,1766056243197,-2397.98261087,0.00020817,2]
[399003362,1766056243206,-3153.2597332,0.00020817,2]
[399003363,1766056243219,-865.28049891,0.00020817,2]
[399003364,1766056243229,-261.20237629,0.00020817,2]
[399003365,1766056243239,-151.0,0.00020877,2]
[399003366,1766056243249,-151.0,0.00020877,2]
[399003367,1766056243259,-151.0,0.00020877,2]
[399003368,1766056243268,-151.0,0.00020877,2]
[399003369,1766056243278,-151.0,0.00020877,2]
[399003370,1766056243288,-190.27485525,0.00020877,2]
[399003371,1766056243298,-500.0,0.00020888,2]
[399003372,1766056243307,-500.0,0.00020888,2]
[399003373,1766056243316,-500.0,0.00020888,2]
[399003374,1766056243326,-500.0,0.00020888,2]
[399003375,1766056243335,-500.0,0.00020888,2]
[399003376,1766056243346,-500.0,0.00020888,2]
[399003377,1766056243356,-415.31092187,0.00020888,2]
[399003378,1766056243366,-645.46457096,0.00020888,2]
[399003379,1766056243375,-500.0,0.00020888,2]
[399003380,1766056243385,-500.0,0.00020888,2]
[399003381,1766056243395,-500.0,0.00020888,2]
[399003383,1766056243404,-500.0,0.00020888,2]
[399003385,1766056243413,-500.0,0.00020888,2]
[399003386,1766056243423,-500.0,0.00020888,2]
[399003387,1766056243432,-500.0,0.00020888,2]
[399003388,1766056243441,-500.0,0.00020888,2]
[399003389,1766056243450,-1000.0,0.00020917,2]
[399003390,1766056243459,-500.0,0.00021016,2]
[399003391,1766056243468,-452.93,0.00021016,2]
[399003392,1766056243478,-574.12855637,0.00021068,2]
[399003394,1766056243487,-250.0,0.00021068,2]
[399003396,1766056243497,-500.0,0.00021068,2]
[399003397,1766056243506,-250.0,0.00021068,2]
[399003398,1766056243515,-500.0,0.00021068,2]
[399003399,1766056243524,-250.0,0.00021068,2]
[399003400,1766056243534,-527.68444493,0.00021068,2]
[399003401,1766056243543,-167.21678217,0.00021068,2]
[399003402,1766056243552,-250.0,0.00021068,2]
[399003403,1766056243561,-264.16834581,0.00021068,2]
[399003404,1766056243570,-200.0,0.00021068,2]
[399003405,1766056243579,-500.0,0.00021068,2]
[399003406,1766056243588,-500.0,0.00021068,2]
[399003407,1766056243597,-500.0,0.00021068,2]
[399003408,1766056243956,-500.0,0.00021068,2]
[399003409,1766056243985,-500.0,0.00021068,2]
[399003410,1766056243995,-500.0,0.00021068,2]
[399003411,1766056244006,-500.0,0.00021068,2]
[399003412,1766056244015,-500.0,0.00021068,2]
[399003413,1766056244024,-500.0,0.00021068,2]
[399003414,1766056244033,-500.0,0.00021068,2]
[399003415,1766056244042,-500.0,0.00021068,2]
[399003416,1766056244052,-2397.98261084,0.0002306,2]
[399003417,1766056244061,-4018.54023204,0.0002306,2]
[399003418,1766056244070,-510.95684234,0.00023268,2]
[399003419,1766056244079,-161.3839175,0.00023316,2]
[399003420,1766056244088,-187.8388695,0.00023316,2]
[399003421,1766056244097,-239.1895086,0.000237,2]
[399003422,1766056244106,-200.0,0.00023743,2]
[399003423,1766056244115,-256.15350978,0.00023743,2]
[399003424,1766056244124,-152.0,0.00023743,2]
[399003425,1766056244134,-152.0,0.00023743,2]
[399003426,1766056244143,-870.57525503,0.00023743,2]
[399003427,1766056244152,-152.0,0.00023743,2]
[399003428,1766056244161,-152.0,0.00023743,2]
[399003429,1766056244170,-152.0,0.00023743,2]
[399003430,1766056244179,-152.0,0.00023743,2]
[399003431,1766056244188,-154.0,0.00023743,2]
[399003432,1766056244197,-152.0,0.00023743,2]
[399003433,1766056244207,-153.40470949,0.00023743,2]
[399003434,1766056244216,-152.0,0.00023743,2]
[399003435,1766056244225,-152.0,0.00023743,2]
[399003436,1766056244234,-152.0,0.00023743,2]
[399003437,1766056244243,-291.05951369,0.00023743,2]
[399003438,1766056244253,-7574.58635761,0.00023743,2]
[399003439,1766056244262,-1852.42,0.0002378,2]
[399003440,1766056244271,-485.0,0.00023781,2]
[399003441,1766056244280,-200.0,0.00023943,2]
[399003442,1766056244290,-200.0,0.0002398,2]
[399003443,1766056244299,-300.77,0.00024466,2]
[399003444,1766056244308,-154.65,0.00024466,2]
[399003445,1766056244317,-150.53,0.00024466,2]
[399003446,1766056244326,-553.55,0.00024466,2]
[399003447,1766056244335,-170.42,0.00024466,2]
[399003448,1766056244344,-322.2,0.00024658,30]
[399003449,1766056244353,-170.56,0.00024658,2]
[399003450,1766056244362,-178.33,0.00024658,2]
[399003451,1766056244371,-357.0,0.00024658,6]
[399003452,1766056244380,-312.0,0.00024658,5]
[399003453,1766056244390,-431.4,0.00024658,7]
[399003454,1766056244399,-348.9,0.00024658,7]
[399003455,1766056244408,-464.41,0.00024744,2]
[399003456,1766056244418,-463.15,0.00024744,2]
[399003457,1766056244427,-35215.9518329,0.000249,3]
[399003458,1766056244436,-176.48,0.00025,14]
[399003459,1766056244445,-589.65480052,0.00025,2]
[399003460,1766056244455,-1214.0,0.00025,2]
[399003461,1766056244464,-1853.4711491,0.00025292,3]
[399003462,1766056244473,-2397.98261084,0.00025302,2]
[399003463,1766056244483,-4018.54023204,0.00025302,2]
[399003464,1766056244492,-500.0,0.00025814,2]
[399003465,1766056244502,-500.0,0.00025814,2]
[399003466,1766056244511,-500.0,0.00025814,2]
[399003467,1766056244521,-509.67980687,0.00025814,2]
[399003468,1766056244530,-1046.58,0.00026052,2]
[399003469,1766056244539,-150.0,0.00026243,2]
[399003470,1766056244548,-1926.53,0.00026383,2]
[399003471,1766056244557,-239.1895086,0.00026584,2]
[399003472,1766056244567,-270.07,0.00026676,2]
[399003473,1766056244576,-500.0,0.00027396,2]
[399003474,1766056244585,-500.0,0.00027396,2]
[399003475,1766056244595,-500.0,0.00027397,14]
[399003476,1766056244604,-2397.98261084,0.00027545,2]
[399003477,1766056244613,-4018.54023204,0.00027545,2]
[399003478,1766056244623,-151.0,0.00028,2]
[399003479,1766056244633,-151.0,0.00028,2]
[399003480,1766056244642,-1000.0,0.00028381,2]
[399003481,1766056244651,-166.66,0.00028756,30]
[399003482,1766056244660,-1000.0,0.00028811,2]
[399003483,1766056244669,-1500.87,0.00028865,2]
[399003484,1766056244679,-999.0,0.0002914,3]
[399003485,1766056244688,-166.66,0.00029362,30]
[399003486,1766056244698,-1853.4711491,0.00029457,3]
[399003487,1766056244707,-239.1895086,0.00029467,2]
[399003488,1766056244716,-322.2,0.00029492,30]
[399003489,1766056244725,-166.66,0.00029656,2]
[399003490,1766056244738,-2318.12130508,0.00029787,2]
[399003491,1766056245547,-79.86130576,0.00029787,2]
[399003492,1766056245557,-1965.53225723,0.00029787,2]
[399003493,1766056245569,-834.90360017,0.00029787,2]
[399003494,1766056245580,-1218.10437464,0.00029787,2]
[399003495,1766056245589,-122.77735747,0.00029967,30]
[399003496,1766056245601,-43.88264253,0.00029967,30]
[399003497,1766056245610,-151.0,0.0003,2]
[399003498,1766056245619,-151.0,0.0003,2]
[399003499,1766056245628,-502.8,0.00030137,20]
[399003500,1766056245638,-646.4,0.00030137,22]
[399003501,1766056245647,-578.4,0.00030137,17]
[399003502,1766056245656,-639.6,0.00030137,17]
[399003503,1766056245666,-634.8,0.00030137,20]
[399003504,1766056245675,-476.0,0.00030137,20]
[399003505,1766056245685,-311.12106347,0.00030137,28]
[399003506,1766056245696,-104.87893653,0.00030137,28]
[399003507,1766056245705,-513.56406352,0.00030137,31]
[399003508,1766056246004,-1000.0,0.00020789,2]
[399003510,1766056246014,-61.63593648,0.00030137,31]
[399003511,1766056246023,-190.88718106,0.00030137,18]
[399003512,1766056246317,-274.31281894,0.00030137,18]
[399003513,1766056246326,-598.23732433,0.0003027,2]
[399003514,1766056246371,-553.29706463,0.0003027,2]
[399003515,1766056246383,-1159.3,0.0003027,2]
[399003526,1766056960507,10000.0,0.00022,30]
[399003527,1766056966432,10000.0,0.00022,30]
[399003528,1766056972612,10000.0,0.00022,30]
[399003529,1766056980087,10000.0,0.00022,30]
[399003530,1766056988567,1237.976165,7.945e-05,2]
[399003531,1766056992398,10000.0,0.00022,30]
[399003532,1766057000940,10000.0,0.00015,10]
[399003533,1766057009674,10000.0,0.00015,10]
[399003534,1766057018103,10000.0,0.00015,10]
[399003535,1766057025798,10000.0,0.00015,10]
[399003541,1766057168430,160.03,0.00011753,2]
[399003560,1766057438111,-229.55,0.00013699,2]
[399003561,1766057438122,-261.58080141,0.00015068,2]
[399003562,1766057438164,-38.41919859,0.00015068,2]
[399003563,1766057438174,-655.50652925,0.0001995,15]
[399003564,1766057438273,-238.21547425,0.0001995,15]
[399003565,1766057438283,-186.32331075,0.00020187,2]
[399003566,1766057438382,-43.22668925,0.00020187,2]
[399003567,1766057438392,-297.221,0.00020373,2]
[399003568,1766057438402,-172.2419578,0.00020373,2]
[399003569,1766057438411,-431.22536067,0.00020589,2]
[399003609,1766057440176,-4823.69043218,0.00020589,2]
[399003610,1766057440292,-720.70480241,0.00020589,2]
[399003611,1766057440382,-18896.66141142,0.00020589,2]
[399003612,1766057440394,-319.13829966,0.00020589,2]
[399003625,1766057443224,-189.67288156,0.00020588,2]
[399003626,1766057443234,-66.09611644,0.00020589,2]
[399003627,1766057443385,-428072.59358116,0.00020589,2]
[399003628,1766057443396,-72098.7825688,0.00020589,2]
[399003629,1766057443407,-3066.8121,0.00020589,2]
[399003630,1766057443418,-1068.475,0.00020589,2]
[399003631,1766057443428,-841.78985,0.00020589,2]
[399003632,1766057443439,-2099.213705,0.00020589,2]
[399003633,1766057443493,-875.98952,0.00020589,2]
[399003635,1766057443504,-594.27179784,0.00020589,2]
[399003644,1766057446257,-54703.03946917,0.00020589,2]
[399003645,1766057446311,-6642.36686057,0.00020589,2]
[399003646,1766057446342,-3819.7999,0.00020589,2]
[399003647,1766057446604,-1090.17267421,0.00020589,2]
[399003652,1766058121379,198.0,0.00023,120]
[399003660,1766058632308,-3538.09891534,0.000203,2]
[399003661,1766058632318,-2460.90108466,0.00020315,2]
[399003662,1766058632368,-255.00000005,0.00020315,2]
[399003663,1766058632489,-118.38632636,0.00020315,2]
[399003664,1766058632501,-316.06547294,0.00020588,2]
[399003668,1766058632545,-183.93452706,0.00020588,2]
[399003670,1766058632554,-500.0,0.00020588,2]
[399003672,1766058632564,-316.06547294,0.00020588,2]
[399003674,1766058632576,-183.93452706,0.00020588,2]
[399003676,1766058632585,-270.41631183,0.00020588,2]
[399003678,1766058632595,-533.10990625,0.00020588,2]
[399003680,1766058632604,-11.53925486,0.00020588,2]
[399003682,1766058632616,-488.46074514,0.00020588,2]
[399003684,1766058632626,-500.0,0.00020588,2]
[399003686,1766058632635,-500.0,0.00020588,2]
[399003688,1766058632645,-500.0,0.00020589,20]
[399003690,1766058632654,-300.0,0.00020733,2]
[399003692,1766058632663,-6651.54014682,0.00020734,2]
[399003745,1766058638455,-500.78571235,0.00020734,2]
[399003804,1766058640493,-872.63,0.00020734,2]
[399003841,1766058647560,-1051.02702553,0.00020734,2]
[399003842,1766058647572,-4663.57297447,0.00020734,2]
[399003843,1766058647585,-441.17193814,0.00020734,2]
[399003844,1766058647598,-1796.0,0.00020734,2]
[399003872,1766059831558,-206.59,0.00013699,2]
[399003873,1766059831568,-195.89605252,0.00013699,2]
[399003874,1766059831665,-67.10394748,0.00013699,2]
[399003875,1766059831675,-282.64705252,0.0002,2]
[399003876,1766059831720,-77.88088614,0.0002,2]
[399003877,1766059831729,-206.59,0.00020187,2]
[399003878,1766059831738,-377.8809666,0.00020588,2]
[399003879,1766059831748,-524.02,0.00020698,2]
[399003880,1766059831757,-1200.0,0.00020733,2]
[399003881,1766059831767,-6641.81287962,0.00020734,2]
[399004134,1766059839877,-5554.85094557,0.00020734,2]
[399004135,1766059839887,-676.475,0.00021462,2]
[399004136,1766059839896,-508.0006,0.000218,2]
[399004137,1766059839908,-2225.48189736,0.000218,2]
[399004138,1766059839919,-2500.0,0.000218,2]
[399004139,1766059839929,-346.61436737,0.000218,2]
[399004141,1766059839938,-159.4596724,0.000218,2]
[399004143,1766059839948,-500.0,0.00021899,2]
[399004145,1766059839957,-500.0,0.00021899,2]
[399004147,1766059839966,-500.0,0.00021899,2]
[399004149,1766059839975,-500.0,0.00021899,2]
[399004150,1766059839986,-342.11751743,0.00021899,2]
[399004170,1766059845651,-505.655,0.00020586,2]
[399004171,1766059845917,-1971.3370949,0.00020586,2]
[399004172,1766059845927,-157.88248257,0.00021899,2]
[399004173,1766059845936,-500.0,0.00021899,2]
[399004174,1766059845946,-500.0,0.00021899,2]
[399004175,1766059845955,-500.0,0.00021899,2]
[399004176,1766059845964,-230.87285471,0.00021899,2]
[399004221,1766060760449,9025.28918231,8e-05,2]
[399004307,1766061031686,-1826.92164788,0.00016,4]
[399004308,1766061031701,-3753.07156661,0.00016,4]
[399004309,1766061031713,-4174.76394407,0.00016,4]
[399004310,1766061031723,-3210.10489457,0.000162,5]
[399004311,1766061031735,-440.56810984,0.000162,5]
[399004312,1766061031747,-4540.26585508,0.000162,5]
[399004313,1766061031757,-150.0,0.00020733,2]
[399004314,1766061031767,-525.19,0.00020734,2]
[399004315,1766061031777,-533.92,0.00020734,2]
[399004316,1766061031787,-130.01601492,0.00020734,2]
[399004317,1766061031800,-388.24398508,0.00020734,2]
[399004318,1766061031809,-121.75601492,0.00020734,2]
[399004319,1766061031821,-408.88398508,0.00020734,2]
[399004320,1766061031831,-521.29,0.00020734,2]
[399004321,1766061031840,-534.22,0.00020734,2]
[399004322,1766061031850,-185.60601492,0.00020734,2]
[399004323,1766061031862,-347.53398508,0.00020734,2]
[399004324,1766061031871,-152.46601492,0.00020734,2]
[399004325,1766061031883,-371.08398508,0.00020734,2]
[399004326,1766061031892,-522.76,0.00020734,2]
[399004327,1766061031902,-520.12,0.00020734,2]
[399004328,1766061031911,-519.86,0.00020734,2]
[399004329,1766061031921,-526.78,0.00020734,2]
[399004330,1766061031931,-3337.5511801,0.00020871,2]
[399004332,1766061031940,-4094.541065,0.00020871,2]
[399004334,1766061031949,-1133.6428999,0.00020871,2]
[399004336,1766061031960,-541.18,0.00021266,2]
[399004338,1766061031969,-808.49510983,0.00021461,2]
[399004340,1766061031978,-6065.38576009,0.000215,2]
[399004342,1766061031990,-890.89,0.000215,2]
[399004344,1766061032001,-963.36281014,0.000215,2]
[399004346,1766061032011,-9954.57232125,0.000215,2]
[399004349,1766061032023,-10974.76835766,0.000215,2]
[399004350,1766061032034,-1932.135623,0.000215,2]
[399004351,1766061032045,-6505.90959998,0.000215,2]
[399004356,1766061037730,-258.87292175,0.00021499,2]
[399004357,1766061037739,-166.3227583,0.00021499,2]
[399004358,1766061037749,-10388.08501056,0.000215,2]
[399004359,1766061037785,-660.1508,0.000215,2]
[399004503,1766061039718,-1557.38467929,0.000215,2]
[399004505,1766061039731,-267.990723,0.000215,2]
[399004507,1766061039773,-865.4013422,0.000215,2]
[399004513,1766061039884,-514.6700002,0.000215,2]
[399004514,1766061039896,-12541.95024179,0.000215,2]
[399004516,1766061040054,-14026.50233629,0.000215,2]
[399004531,1766061043009,-1182.47375131,0.000215,2]
[399004652,1766061047694,-1780.0,0.000215,2]
[399004653,1766061047705,-1090.17267421,0.000215,2]
[399004681,1766061184254,2105.0752108,0.00023,120]
[399004743,1766062231976,-200.85,0.00013699,2]
[399004744,1766062231985,-200.85,0.00020187,2]
[399004745,1766062231994,-479.841468,0.00020485,2]
[399004746,1766062232003,-1006.078532,0.00020588,2]
[399004747,1766062232014,-111.3922674,0.00020588,2]
[399004748,1766062232023,-166.1668888,0.00020588,2]
[399004749,1766062232033,-432.944,0.0002107,2]
[399004750,1766062232042,-584.99129091,0.00021299,2]
[399004758,1766062237955,-615.00870909,0.00021299,2]
[399004759,1766062237964,-848.56905091,0.000213,2]
[399004763,1766062239986,-768.02911469,0.000213,2]
[399004764,1766062240002,-373.77339988,0.000213,2]
[399004780,1766062242913,-658.769994,0.000213,2]
[399004781,1766062242925,-14743.62943014,0.000213,2]
[399004782,1766062242935,-11171.0485,0.000213,2]
[399004783,1766062242944,-158.43897554,0.000213,2]
[399004784,1766062242953,-231.0762449,0.000213,2]
[399004785,1766062242963,-956.0,0.00021397,2]
[399004786,1766062242973,-181.21104523,0.00021398,2]
[399004787,1766062242983,-500.0,0.00021398,2]
[399004788,1766062242993,-206.30573403,0.00021398,2]
[399004789,1766062243004,-500.0,0.00021398,2]
[399004790,1766062243015,-500.0,0.00021398,2]
[399004791,1766062243026,-500.0,0.00021398,2]
[399004792,1766062243037,-500.0,0.00021398,2]
[399004793,1766062243046,-500.0,0.00021398,2]
[399004794,1766062243055,-500.0,0.00021398,2]
[399004795,1766062243063,-500.0,0.00021398,2]
[399004796,1766062243073,-500.0,0.00021398,2]
[399004797,1766062243082,-500.0,0.00021398,2]
[399004798,1766062243091,-500.0,0.00021398,2]
[399004799,1766062243101,-500.0,0.00021398,2]
[399004800,1766062243110,-500.0,0.00021398,2]
[399004801,1766062243120,-500.0,0.00021398,2]
[399004802,1766062243129,-500.0,0.00021398,2]
[399004803,1766062243138,-500.0,0.00021398,2]
[399004804,1766062243150,-500.0,0.00021398,2]
[399004805,1766062243170,-500.0,0.00021398,2]
[399004806,1766062243188,-500.0,0.00021398,2]